[Event "Titled Tuesday Blitz July 25 Early 2023"]
[White "Lohani, Sujana"]
[Black "Vifleemskaia, Svetlana"]
[WhiteFideId "12311987"]
[BlackFideId "4129490"]
[WhiteElo "1931"]
[BlackElo "2355"]
[Result "0-1"]
[Round "3"]
[TimeControl "180+2"]
[Date "2023.07.25"]
[WhiteClock "0:00:03"]
[BlackClock "0:00:28"]
[Board "251"]

1. d4 {[%clk 0:03:00]}  Nf6 {[%clk 0:02:52]} 2. Nf3 {[%clk 0:03:01]}  d5 {[%clk 0:02:43]} 3. c4 {[%clk 0:03:02]}  dxc4 {[%clk 0:02:43]} 4. e3 {[%clk 0:02:52]}  a6 {[%clk 0:02:42]} 5. Bxc4 {[%clk 0:02:42]}  b5 {[%clk 0:02:41]} 6. Bb3 {[%clk 0:02:38]}  Bb7 {[%clk 0:02:41]} 7. O-O {[%clk 0:02:37]}  e6 {[%clk 0:02:40]} 8. Nc3 {[%clk 0:02:14]}  Nbd7 {[%clk 0:02:39]} 9. Re1 {[%clk 0:02:13]}  Bd6 {[%clk 0:02:32]} 10. e4 {[%clk 0:02:09]}  e5 {[%clk 0:02:30]} 11. d5 {[%clk 0:02:05]}  O-O {[%clk 0:02:26]} 12. Nh4 {[%clk 0:01:51]}  Nxe4 {[%clk 0:02:12]} 13. Rxe4 {[%clk 0:01:49]}  f5 {[%clk 0:02:10]} 14. Nxf5 {[%clk 0:01:47]}  Rxf5 {[%clk 0:02:09]} 15. Rg4 {[%clk 0:01:18]}  Nf6 {[%clk 0:02:01]} 16. Rg3 {[%clk 0:01:04]}  Nh5 {[%clk 0:01:58]} 17. Rg4 {[%clk 0:00:53]}  Nf6 {[%clk 0:01:55]} 18. Rg3 {[%clk 0:00:53]}  e4 {[%clk 0:01:55]} 19. Rh3 {[%clk 0:00:50]}  Kh8 {[%clk 0:01:41]} 20. Be3 {[%clk 0:00:43]}  Qe7 {[%clk 0:01:23]} 21. Qd4 {[%clk 0:00:25]}  Be5 {[%clk 0:01:01]} 22. Qd2 {[%clk 0:00:19]}  Rd8 {[%clk 0:00:59]} 23. Rd1 {[%clk 0:00:18]}  Nxd5 {[%clk 0:00:42]} 24. Nxd5 {[%clk 0:00:16]}  Bxd5 {[%clk 0:00:40]} 25. Bxd5 {[%clk 0:00:16]}  Rxd5 {[%clk 0:00:39]} 26. Qxd5 {[%clk 0:00:16]}  Bxh2+ {[%clk 0:00:36]} 27. Kxh2 {[%clk 0:00:13]}  Rxd5 {[%clk 0:00:35]} 28. Rxd5 {[%clk 0:00:13]}  h6 {[%clk 0:00:35]} 29. Bd4 {[%clk 0:00:12]}  Kh7 {[%clk 0:00:34]} 30. Rdh5 {[%clk 0:00:11]}  Qd6+ {[%clk 0:00:32]} 31. Rg3 {[%clk 0:00:08]}  Qxd4 {[%clk 0:00:31]} 32. Rf5 {[%clk 0:00:06]}  Qxb2 {[%clk 0:00:30]} 33. Rf7 {[%clk 0:00:06]}  c5 {[%clk 0:00:30]} 34. Re7 {[%clk 0:00:04]}  Qd4 {[%clk 0:00:29]} 35. Rf7 {[%clk 0:00:03]}  c4 {[%clk 0:00:28]} 0-1


[Site "https://www.chess.com"]

[Event "Titled Tuesday Blitz July 25 Early 2023"]
[White "Grandelius, Nils"]
[Black "Vachier-Lagrave, Maxime"]
[WhiteFideId "1710400"]
[BlackFideId "623539"]
[WhiteElo "2869"]
[BlackElo "3132"]
[Result "1/2-1/2"]
[Round "4"]
[TimeControl "180+2"]
[Date "2023.07.25"]
[WhiteClock "0:00:07"]
[BlackClock "0:00:24"]
[Board "2"]

1. d4 {[%clk 0:03:00]}  Nf6 {[%clk 0:02:59]} 2. Nf3 {[%clk 0:03:01]}  g6 {[%clk 0:02:58]} 3. g3 {[%clk 0:03:00]}  Bg7 {[%clk 0:02:58]} 4. Bg2 {[%clk 0:03:00]}  O-O {[%clk 0:02:58]} 5. O-O {[%clk 0:03:00]}  d5 {[%clk 0:02:58]} 6. c4 {[%clk 0:03:01]}  c6 {[%clk 0:02:58]} 7. cxd5 {[%clk 0:03:00]}  cxd5 {[%clk 0:02:59]} 8. Nc3 {[%clk 0:02:59]}  Nc6 {[%clk 0:02:59]} 9. Ne5 {[%clk 0:02:55]}  Bf5 {[%clk 0:03:00]} 10. Bf4 {[%clk 0:02:52]}  Nh5 {[%clk 0:02:58]} 11. Nxc6 {[%clk 0:02:33]}  bxc6 {[%clk 0:02:59]} 12. Be3 {[%clk 0:02:30]}  c5 {[%clk 0:02:59]} 13. Nxd5 {[%clk 0:02:26]}  e6 {[%clk 0:03:00]} 14. Nf4 {[%clk 0:02:17]}  cxd4 {[%clk 0:03:00]} 15. Nxh5 {[%clk 0:02:17]}  gxh5 {[%clk 0:03:00]} 16. Bd2 {[%clk 0:02:08]}  Rb8 {[%clk 0:02:50]} 17. b4 {[%clk 0:01:47]}  h4 {[%clk 0:02:44]} 18. Rc1 {[%clk 0:01:44]}  h3 {[%clk 0:02:43]} 19. Bh1 {[%clk 0:01:44]}  e5 {[%clk 0:02:40]} 20. Qb3 {[%clk 0:01:33]}  e4 {[%clk 0:02:27]} 21. Rc5 {[%clk 0:01:20]}  Bg6 {[%clk 0:02:13]} 22. g4 {[%clk 0:01:18]}  d3 {[%clk 0:02:00]} 23. exd3 {[%clk 0:01:16]}  Qd7 {[%clk 0:02:00]} 24. Qd1 {[%clk 0:01:08]}  Rfd8 {[%clk 0:01:51]} 25. Bg5 {[%clk 0:01:02]}  exd3 {[%clk 0:01:49]} 26. Bxd8 {[%clk 0:01:00]}  Rxd8 {[%clk 0:01:49]} 27. Rd5 {[%clk 0:00:51]}  Qc7 {[%clk 0:01:48]} 28. Rxd8+ {[%clk 0:00:51]}  Qxd8 {[%clk 0:01:49]} 29. Qf3 {[%clk 0:00:51]}  Qd4 {[%clk 0:01:42]} 30. Qxh3 {[%clk 0:00:43]}  Qxb4 {[%clk 0:01:37]} 31. Bf3 {[%clk 0:00:35]}  Be5 {[%clk 0:01:35]} 32. Bd1 {[%clk 0:00:32]}  Kg7 {[%clk 0:01:24]} 33. Qe3 {[%clk 0:00:27]}  Bf4 {[%clk 0:01:20]} 34. Qxa7 {[%clk 0:00:19]}  Qd6 {[%clk 0:01:19]} 35. Qb7 {[%clk 0:00:16]}  Bxh2+ {[%clk 0:01:15]} 36. Kg2 {[%clk 0:00:17]}  Be5 {[%clk 0:01:12]} 37. Bf3 {[%clk 0:00:14]}  Qd4 {[%clk 0:01:11]} 38. Qd5 {[%clk 0:00:13]}  Qf4 {[%clk 0:01:11]} 39. Rh1 {[%clk 0:00:12]}  Bf6 {[%clk 0:00:47]} 40. a4 {[%clk 0:00:12]}  Qxa4 {[%clk 0:00:46]} 41. Rd1 {[%clk 0:00:12]}  Qc2 {[%clk 0:00:40]} 42. g5 {[%clk 0:00:08]}  Bc3 {[%clk 0:00:39]} 43. Kf1 {[%clk 0:00:06]}  Bb2 {[%clk 0:00:28]} 44. Kg2 {[%clk 0:00:05]}  Bc3 {[%clk 0:00:23]} 45. Kf1 {[%clk 0:00:05]}  d2 {[%clk 0:00:23]} 46. Kg2 {[%clk 0:00:05]}  Qb2 {[%clk 0:00:20]} 47. Qd8 {[%clk 0:00:04]}  Qb4 {[%clk 0:00:18]} 48. Rxd2 {[%clk 0:00:01]}  Bxd2 {[%clk 0:00:18]} 49. Qf6+ {[%clk 0:00:01]}  Kg8 {[%clk 0:00:18]} 50. Qd8+ {[%clk 0:00:02]}  Qf8 {[%clk 0:00:18]} 51. Qxd2 {[%clk 0:00:02]}  Qe7 {[%clk 0:00:18]} 52. Qf4 {[%clk 0:00:03]}  Qc5 {[%clk 0:00:18]} 53. Qb8+ {[%clk 0:00:03]}  Kg7 {[%clk 0:00:19]} 54. Qb2+ {[%clk 0:00:03]}  Kf8 {[%clk 0:00:20]} 55. Qb8+ {[%clk 0:00:04]}  Ke7 {[%clk 0:00:20]} 56. Qf4 {[%clk 0:00:04]}  Bf5 {[%clk 0:00:19]} 57. Qe3+ {[%clk 0:00:03]}  Qxe3 {[%clk 0:00:18]} 58. fxe3 {[%clk 0:00:04]}  Kd6 {[%clk 0:00:19]} 59. Kg3 {[%clk 0:00:05]}  Ke5 {[%clk 0:00:19]} 60. Bh5 {[%clk 0:00:05]}  Bg6 {[%clk 0:00:19]} 61. Bg4 {[%clk 0:00:06]}  Ke4 {[%clk 0:00:19]} 62. Kf2 {[%clk 0:00:06]}  Bf5 {[%clk 0:00:20]} 63. Bf3+ {[%clk 0:00:06]}  Ke5 {[%clk 0:00:20]} 64. Kg3 {[%clk 0:00:07]}  Be6 {[%clk 0:00:20]} 65. Bd1 {[%clk 0:00:04]}  Bd5 {[%clk 0:00:19]} 66. Bc2 {[%clk 0:00:04]}  Be4 {[%clk 0:00:20]} 67. Bb3 {[%clk 0:00:05]}  Bg6 {[%clk 0:00:20]} 68. Bd1 {[%clk 0:00:01]}  Ke4 {[%clk 0:00:20]} 69. Kh4 {[%clk 0:00:02]}  Kxe3 {[%clk 0:00:20]} 70. Bg4 {[%clk 0:00:02]}  Kf4 {[%clk 0:00:21]} 71. Bc8 {[%clk 0:00:03]}  Bf5 {[%clk 0:00:21]} 72. Bb7 {[%clk 0:00:03]}  Bd3 {[%clk 0:00:20]} 73. Bc6 {[%clk 0:00:03]}  Bg6 {[%clk 0:00:20]} 74. Bd5 {[%clk 0:00:03]}  Ke5 {[%clk 0:00:20]} 75. Bb3 {[%clk 0:00:04]}  Kd6 {[%clk 0:00:20]} 76. Ba2 {[%clk 0:00:04]}  Ke7 {[%clk 0:00:21]} 77. Bb3 {[%clk 0:00:05]}  f6 {[%clk 0:00:21]} 78. gxf6+ {[%clk 0:00:05]}  Kxf6 {[%clk 0:00:22]} 79. Kg3 {[%clk 0:00:05]}  h5 {[%clk 0:00:23]} 80. Kh2 {[%clk 0:00:06]}  h4 {[%clk 0:00:23]} 81. Bc4 {[%clk 0:00:07]}  h3 {[%clk 0:00:24]} 82. Kxh3 {[%clk 0:00:07]} 1/2-1/2


[Site "https://www.chess.com"]

[Event "Titled Tuesday Blitz July 25 Early 2023"]
[White "Bacrot, Etienne"]
[Black "Dubov, Daniil"]
[WhiteFideId "605506"]
[BlackFideId "24126055"]
[WhiteElo "2867"]
[BlackElo "3100"]
[Result "0-1"]
[Round "4"]
[TimeControl "180+2"]
[Date "2023.07.25"]
[WhiteClock "0:00:25"]
[BlackClock "0:00:08"]
[Board "3"]

1. Nf3 {[%clk 0:03:00]}  Nf6 {[%clk 0:02:58]} 2. g3 {[%clk 0:03:01]}  b6 {[%clk 0:02:57]} 3. Bg2 {[%clk 0:03:01]}  Bb7 {[%clk 0:02:57]} 4. O-O {[%clk 0:03:02]}  c5 {[%clk 0:02:57]} 5. b3 {[%clk 0:03:02]}  g6 {[%clk 0:02:57]} 6. Bb2 {[%clk 0:03:03]}  Bg7 {[%clk 0:02:58]} 7. c4 {[%clk 0:03:03]}  O-O {[%clk 0:02:58]} 8. Nc3 {[%clk 0:03:03]}  d6 {[%clk 0:02:57]} 9. d4 {[%clk 0:03:03]}  cxd4 {[%clk 0:02:57]} 10. Nxd4 {[%clk 0:03:04]}  Bxg2 {[%clk 0:02:56]} 11. Kxg2 {[%clk 0:03:05]}  Re8 {[%clk 0:02:51]} 12. e3 {[%clk 0:03:05]}  Nbd7 {[%clk 0:02:48]} 13. f4 {[%clk 0:03:02]}  a6 {[%clk 0:02:43]} 14. Qf3 {[%clk 0:03:01]}  Nc5 {[%clk 0:02:42]} 15. Rad1 {[%clk 0:03:00]}  Qd7 {[%clk 0:01:56]} 16. Qc6 {[%clk 0:02:05]}  Qa7 {[%clk 0:01:45]} 17. Qf3 {[%clk 0:02:01]}  Qd7 {[%clk 0:01:37]} 18. Nde2 {[%clk 0:02:01]}  b5 {[%clk 0:01:16]} 19. e4 {[%clk 0:02:01]}  Qb7 {[%clk 0:00:41]} 20. e5 {[%clk 0:01:53]}  Qxf3+ {[%clk 0:00:38]} 21. Kxf3 {[%clk 0:01:53]}  dxe5 {[%clk 0:00:38]} 22. fxe5 {[%clk 0:01:53]}  Nfd7 {[%clk 0:00:37]} 23. Ne4 {[%clk 0:01:31]}  bxc4 {[%clk 0:00:28]} 24. bxc4 {[%clk 0:01:32]}  Rac8 {[%clk 0:00:25]} 25. Nxc5 {[%clk 0:01:31]}  Nxc5 {[%clk 0:00:25]} 26. Ba1 {[%clk 0:01:14]}  Rc7 {[%clk 0:00:24]} 27. Nf4 {[%clk 0:00:45]}  e6 {[%clk 0:00:20]} 28. Rfe1 {[%clk 0:00:45]}  Rec8 {[%clk 0:00:19]} 29. Rd6 {[%clk 0:00:45]}  Bf8 {[%clk 0:00:16]} 30. Rb6 {[%clk 0:00:44]}  h5 {[%clk 0:00:09]} 31. g4 {[%clk 0:00:28]}  hxg4+ {[%clk 0:00:09]} 32. Kxg4 {[%clk 0:00:29]}  Ra8 {[%clk 0:00:10]} 33. h4 {[%clk 0:00:29]}  Nd7 {[%clk 0:00:10]} 34. Rb3 {[%clk 0:00:24]}  Rxc4 {[%clk 0:00:10]} 35. h5 {[%clk 0:00:25]}  Bh6 {[%clk 0:00:09]} 36. Rf3 {[%clk 0:00:25]}  g5 {[%clk 0:00:08]} 0-1


[Site "https://www.chess.com"]

[Event "Titled Tuesday Blitz July 25 Early 2023"]
[White "KhalilMousavi98"]
[Black "Sarana, Alexey"]
[BlackFideId "24133795"]
[WhiteElo "2862"]
[BlackElo "3059"]
[Result "0-1"]
[Round "4"]
[TimeControl "180+2"]
[Date "2023.07.25"]
[WhiteClock "0:00:08"]
[BlackClock "0:00:56"]
[Board "4"]

1. e4 {[%clk 0:03:00]}  e5 {[%clk 0:02:59]} 2. Nf3 {[%clk 0:02:59]}  Nc6 {[%clk 0:03:00]} 3. Bb5 {[%clk 0:02:59]}  Nf6 {[%clk 0:02:59]} 4. d3 {[%clk 0:02:57]}  Bc5 {[%clk 0:02:57]} 5. Bxc6 {[%clk 0:02:56]}  dxc6 {[%clk 0:02:57]} 6. Nbd2 {[%clk 0:02:52]}  Nd7 {[%clk 0:02:57]} 7. Nc4 {[%clk 0:02:51]}  Qe7 {[%clk 0:02:56]} 8. Ne3 {[%clk 0:02:45]}  f6 {[%clk 0:02:50]} 9. g4 {[%clk 0:02:36]}  Nf8 {[%clk 0:02:50]} 10. h4 {[%clk 0:02:27]}  Bxe3 {[%clk 0:02:48]} 11. Bxe3 {[%clk 0:02:23]}  Bxg4 {[%clk 0:02:48]} 12. Rg1 {[%clk 0:02:16]}  h5 {[%clk 0:02:48]} 13. Rg3 {[%clk 0:02:15]}  Ne6 {[%clk 0:02:35]} 14. Qd2 {[%clk 0:02:12]}  Bxf3 {[%clk 0:02:35]} 15. Rxf3 {[%clk 0:02:13]}  O-O-O {[%clk 0:02:35]} 16. O-O-O {[%clk 0:02:06]}  c5 {[%clk 0:02:30]} 17. Rg1 {[%clk 0:02:05]}  b6 {[%clk 0:02:15]} 18. Rfg3 {[%clk 0:02:04]}  c4 {[%clk 0:02:14]} 19. Qc3 {[%clk 0:01:48]}  cxd3 {[%clk 0:02:12]} 20. cxd3 {[%clk 0:01:47]}  Rd6 {[%clk 0:02:11]} 21. Kb1 {[%clk 0:01:38]}  Rhd8 {[%clk 0:02:11]} 22. Bc1 {[%clk 0:01:30]}  Qd7 {[%clk 0:02:11]} 23. Rd1 {[%clk 0:01:24]}  Nc5 {[%clk 0:02:11]} 24. Qc4 {[%clk 0:01:19]}  Rd4 {[%clk 0:02:06]} 25. Qc2 {[%clk 0:01:16]}  Nxe4 {[%clk 0:02:01]} 26. Rgg1 {[%clk 0:01:14]}  Nc5 {[%clk 0:01:51]} 27. Be3 {[%clk 0:01:13]}  Rxd3 {[%clk 0:01:51]} 28. Rc1 {[%clk 0:01:12]}  Ne6 {[%clk 0:01:45]} 29. Qe2 {[%clk 0:01:09]}  Qe8 {[%clk 0:01:34]} 30. Qf3 {[%clk 0:01:05]}  Kb8 {[%clk 0:01:35]} 31. Qe4 {[%clk 0:01:00]}  c5 {[%clk 0:01:34]} 32. f4 {[%clk 0:00:46]}  Qd7 {[%clk 0:01:11]} 33. f5 {[%clk 0:00:30]}  Nc7 {[%clk 0:01:06]} 34. Bf2 {[%clk 0:00:19]}  Rd2 {[%clk 0:01:02]} 35. Be1 {[%clk 0:00:17]}  Rd4 {[%clk 0:01:00]} 36. Qe2 {[%clk 0:00:13]}  Qxf5+ {[%clk 0:00:59]} 37. Ka1 {[%clk 0:00:13]}  R8d7 {[%clk 0:00:59]} 38. Bc3 {[%clk 0:00:12]}  Rxh4 {[%clk 0:00:57]} 39. Rcf1 {[%clk 0:00:08]}  Qe4 {[%clk 0:00:56]} 40. Qf2 {[%clk 0:00:08]}  Rf4 {[%clk 0:00:56]} 41. Qg3 {[%clk 0:00:07]}  Rxf1+ {[%clk 0:00:56]} 42. Rxf1 {[%clk 0:00:08]}  h4 {[%clk 0:00:56]} 0-1


[Site "https://www.chess.com"]

[Event "Titled Tuesday Blitz July 25 Early 2023"]
[White "Bluebaum, Matthias"]
[Black "Ilamparthi A R"]
[WhiteFideId "24651516"]
[BlackFideId "45015775"]
[WhiteElo "3050"]
[BlackElo "2857"]
[Result "1-0"]
[Round "4"]
[TimeControl "180+2"]
[Date "2023.07.25"]
[WhiteClock "0:01:52"]
[BlackClock "0:00:14"]
[Board "5"]

1. d4 {[%clk 0:03:00]}  Nf6 {[%clk 0:02:59]} 2. c4 {[%clk 0:03:01]}  g6 {[%clk 0:03:00]} 3. Nc3 {[%clk 0:03:01]}  Bg7 {[%clk 0:03:01]} 4. e4 {[%clk 0:03:02]}  d6 {[%clk 0:03:01]} 5. Nf3 {[%clk 0:03:03]}  O-O {[%clk 0:03:02]} 6. Be2 {[%clk 0:03:04]}  e5 {[%clk 0:03:00]} 7. Be3 {[%clk 0:03:04]}  Ng4 {[%clk 0:02:58]} 8. Bg5 {[%clk 0:03:04]}  f6 {[%clk 0:02:58]} 9. Bh4 {[%clk 0:03:05]}  Nc6 {[%clk 0:02:42]} 10. d5 {[%clk 0:03:05]}  Ne7 {[%clk 0:02:36]} 11. Nd2 {[%clk 0:03:05]}  Nh6 {[%clk 0:02:34]} 12. f3 {[%clk 0:03:06]}  g5 {[%clk 0:02:29]} 13. Bf2 {[%clk 0:03:06]}  f5 {[%clk 0:02:29]} 14. c5 {[%clk 0:03:06]}  Ng6 {[%clk 0:02:29]} 15. Nc4 {[%clk 0:03:06]}  g4 {[%clk 0:02:26]} 16. fxg4 {[%clk 0:03:03]}  Nxg4 {[%clk 0:02:02]} 17. Bxg4 {[%clk 0:03:04]}  fxg4 {[%clk 0:02:03]} 18. O-O {[%clk 0:03:04]}  Nf4 {[%clk 0:01:59]} 19. cxd6 {[%clk 0:02:58]}  cxd6 {[%clk 0:01:59]} 20. Nb5 {[%clk 0:02:59]}  Bd7 {[%clk 0:01:50]} 21. Nbxd6 {[%clk 0:02:57]}  Qg5 {[%clk 0:01:40]} 22. Ne3 {[%clk 0:02:47]}  Rad8 {[%clk 0:01:17]} 23. Ndf5 {[%clk 0:02:38]}  Bxf5 {[%clk 0:01:14]} 24. Nxf5 {[%clk 0:02:39]}  Rxf5 {[%clk 0:01:11]} 25. exf5 {[%clk 0:02:36]}  Qxf5 {[%clk 0:01:09]} 26. Be3 {[%clk 0:02:26]}  h5 {[%clk 0:01:00]} 27. Qd2 {[%clk 0:02:19]}  Bh6 {[%clk 0:00:52]} 28. Rad1 {[%clk 0:02:10]}  h4 {[%clk 0:00:50]} 29. Bxf4 {[%clk 0:02:07]}  exf4 {[%clk 0:00:45]} 30. Qd3 {[%clk 0:02:07]}  Qg5 {[%clk 0:00:39]} 31. d6 {[%clk 0:02:08]}  Kh8 {[%clk 0:00:38]} 32. Qd4+ {[%clk 0:02:07]}  Bg7 {[%clk 0:00:38]} 33. Qxf4 {[%clk 0:02:06]}  Qh5 {[%clk 0:00:36]} 34. Qf5 {[%clk 0:02:02]}  Qh6 {[%clk 0:00:32]} 35. Qxg4 {[%clk 0:01:58]}  Rg8 {[%clk 0:00:32]} 36. d7 {[%clk 0:01:54]}  Rd8 {[%clk 0:00:16]} 37. Rd5 {[%clk 0:01:52]}  Qb6+ {[%clk 0:00:14]} 38. Kh1 {[%clk 0:01:52]}  Qa6 {[%clk 0:00:15]} 39. Qxh4+ {[%clk 0:01:52]}  Kg8 {[%clk 0:00:14]} 40. Qxd8+ {[%clk 0:01:52]} 1-0


[Site "https://www.chess.com"]

[Event "Titled Tuesday Blitz July 25 Early 2023"]
[White "Salinas Herrera, Pablo"]
[Black "Shimanov, Aleksandr"]
[WhiteFideId "3407128"]
[BlackFideId "4198603"]
[WhiteElo "2847"]
[BlackElo "3016"]
[Result "1/2-1/2"]
[Round "4"]
[TimeControl "180+2"]
[Date "2023.07.25"]
[WhiteClock "0:00:07"]
[BlackClock "0:00:06"]
[Board "7"]

1. d4 {[%clk 0:03:00]}  g6 {[%clk 0:02:57]} 2. e4 {[%clk 0:03:00]}  d6 {[%clk 0:02:54]} 3. Be2 {[%clk 0:03:00]}  Nf6 {[%clk 0:02:54]} 4. Nc3 {[%clk 0:03:00]}  Nc6 {[%clk 0:02:43]} 5. Nf3 {[%clk 0:02:58]}  Bg7 {[%clk 0:02:41]} 6. O-O {[%clk 0:02:58]}  O-O {[%clk 0:02:42]} 7. d5 {[%clk 0:02:58]}  Nb8 {[%clk 0:02:37]} 8. h3 {[%clk 0:02:58]}  e5 {[%clk 0:02:36]} 9. dxe6 {[%clk 0:02:58]}  Bxe6 {[%clk 0:02:36]} 10. Bf4 {[%clk 0:02:58]}  Nc6 {[%clk 0:02:35]} 11. Qd2 {[%clk 0:02:57]}  Re8 {[%clk 0:02:25]} 12. Rad1 {[%clk 0:02:56]}  Nd7 {[%clk 0:02:21]} 13. Rfe1 {[%clk 0:02:55]}  Nde5 {[%clk 0:02:18]} 14. Ng5 {[%clk 0:02:36]}  Qf6 {[%clk 0:01:37]} 15. Nxe6 {[%clk 0:02:32]}  fxe6 {[%clk 0:01:36]} 16. b3 {[%clk 0:02:22]}  Rf8 {[%clk 0:01:32]} 17. Be3 {[%clk 0:02:19]}  Nf3+ {[%clk 0:01:26]} 18. Bxf3 {[%clk 0:02:18]}  Qxc3 {[%clk 0:01:27]} 19. Bg4 {[%clk 0:02:15]}  Rae8 {[%clk 0:01:25]} 20. Qxc3 {[%clk 0:02:03]}  Bxc3 {[%clk 0:01:26]} 21. Rf1 {[%clk 0:02:04]}  e5 {[%clk 0:01:24]} 22. Be2 {[%clk 0:02:02]}  Kg7 {[%clk 0:01:21]} 23. g3 {[%clk 0:01:58]}  Bd4 {[%clk 0:01:20]} 24. Bd2 {[%clk 0:01:55]}  Bb6 {[%clk 0:01:19]} 25. c3 {[%clk 0:01:54]}  Nd8 {[%clk 0:01:16]} 26. Kg2 {[%clk 0:01:54]}  Ne6 {[%clk 0:01:16]} 27. h4 {[%clk 0:01:54]}  h6 {[%clk 0:01:08]} 28. b4 {[%clk 0:01:54]}  a5 {[%clk 0:01:07]} 29. a3 {[%clk 0:01:51]}  Rf6 {[%clk 0:01:03]} 30. Bc4 {[%clk 0:01:47]}  Ref8 {[%clk 0:00:54]} 31. f3 {[%clk 0:01:47]}  Nd8 {[%clk 0:00:50]} 32. Bc1 {[%clk 0:01:36]}  Nc6 {[%clk 0:00:49]} 33. Bd5 {[%clk 0:01:35]}  Nd8 {[%clk 0:00:45]} 34. Bb3 {[%clk 0:01:20]}  Re8 {[%clk 0:00:44]} 35. Rd5 {[%clk 0:01:17]}  axb4 {[%clk 0:00:44]} 36. axb4 {[%clk 0:01:18]}  Ne6 {[%clk 0:00:43]} 37. Rdd1 {[%clk 0:01:13]}  Ra8 {[%clk 0:00:43]} 38. Bb2 {[%clk 0:01:10]}  g5 {[%clk 0:00:39]} 39. Bxe6 {[%clk 0:00:46]}  Rxe6 {[%clk 0:00:39]} 40. hxg5 {[%clk 0:00:47]}  hxg5 {[%clk 0:00:40]} 41. Ra1 {[%clk 0:00:47]}  Rxa1 {[%clk 0:00:27]} 42. Rxa1 {[%clk 0:00:47]}  Re8 {[%clk 0:00:26]} 43. Kh3 {[%clk 0:00:35]}  Rh8+ {[%clk 0:00:21]} 44. Kg4 {[%clk 0:00:35]}  Rh2 {[%clk 0:00:22]} 45. Bc1 {[%clk 0:00:34]}  Rc2 {[%clk 0:00:23]} 46. Bxg5 {[%clk 0:00:34]}  Rxc3 {[%clk 0:00:23]} 47. Ra8 {[%clk 0:00:22]}  Rb3 {[%clk 0:00:23]} 48. Rb8 {[%clk 0:00:22]}  Rxb4 {[%clk 0:00:18]} 49. Rxb7 {[%clk 0:00:22]}  Rb3 {[%clk 0:00:18]} 50. Bd8 {[%clk 0:00:22]}  Rc3 {[%clk 0:00:18]} 51. f4 {[%clk 0:00:19]}  exf4 {[%clk 0:00:19]} 52. gxf4 {[%clk 0:00:20]}  Kf7 {[%clk 0:00:18]} 53. Kf5 {[%clk 0:00:16]}  Ke8 {[%clk 0:00:14]} 54. Bf6 {[%clk 0:00:15]}  Rc4 {[%clk 0:00:07]} 55. e5 {[%clk 0:00:11]}  dxe5 {[%clk 0:00:06]} 56. fxe5 {[%clk 0:00:11]}  Rc5 {[%clk 0:00:05]} 57. Ke6 {[%clk 0:00:06]}  Rc6+ {[%clk 0:00:05]} 58. Kd5 {[%clk 0:00:07]}  Rc5+ {[%clk 0:00:05]} 59. Ke6 {[%clk 0:00:07]}  Rc6+ {[%clk 0:00:05]} 60. Kf5 {[%clk 0:00:08]}  Kd7 {[%clk 0:00:04]} 61. Rb8 {[%clk 0:00:08]}  Rc5 {[%clk 0:00:05]} 62. Rd8+ {[%clk 0:00:08]}  Kc6 {[%clk 0:00:05]} 63. Kg6 {[%clk 0:00:07]}  Ra5 {[%clk 0:00:05]} 64. e6 {[%clk 0:00:07]}  Bc5 {[%clk 0:00:06]} 65. Kf7 {[%clk 0:00:07]}  Ra2 {[%clk 0:00:06]} 66. Rd3 {[%clk 0:00:06]}  Bd6 {[%clk 0:00:03]} 67. e7 {[%clk 0:00:06]}  Bxe7 {[%clk 0:00:04]} 68. Bxe7 {[%clk 0:00:07]}  Rf2+ {[%clk 0:00:04]} 69. Bf6 {[%clk 0:00:06]}  Re2 {[%clk 0:00:04]} 70. Rc3+ {[%clk 0:00:07]}  Kd6 {[%clk 0:00:04]} 71. Rd3+ {[%clk 0:00:06]}  Kc6 {[%clk 0:00:04]} 72. Kg6 {[%clk 0:00:06]}  Kb5 {[%clk 0:00:04]} 73. Rb3+ {[%clk 0:00:05]}  Kc6 {[%clk 0:00:04]} 74. Rc3+ {[%clk 0:00:06]}  Kd6 {[%clk 0:00:03]} 75. Kf5 {[%clk 0:00:06]}  c5 {[%clk 0:00:04]} 76. Bg5 {[%clk 0:00:06]}  Kd5 {[%clk 0:00:04]} 77. Rc1 {[%clk 0:00:06]}  c4 {[%clk 0:00:04]} 78. Bf4 {[%clk 0:00:06]}  Kd4 {[%clk 0:00:04]} 79. Rd1+ {[%clk 0:00:07]}  Kc3 {[%clk 0:00:04]} 80. Rd8 {[%clk 0:00:06]}  Kc2 {[%clk 0:00:05]} 81. Rc8 {[%clk 0:00:06]}  c3 {[%clk 0:00:05]} 82. Kg4 {[%clk 0:00:07]}  Kd3 {[%clk 0:00:02]} 83. Kf3 {[%clk 0:00:07]}  Re4 {[%clk 0:00:02]} 84. Rd8+ {[%clk 0:00:03]}  Rd4 {[%clk 0:00:02]} 85. Rxd4+ {[%clk 0:00:03]}  Kxd4 {[%clk 0:00:03]} 86. Ke2 {[%clk 0:00:04]}  c2 {[%clk 0:00:03]} 87. Bc1 {[%clk 0:00:05]}  Kc4 {[%clk 0:00:03]} 88. Be3 {[%clk 0:00:05]}  Kc3 {[%clk 0:00:04]} 89. Bc1 {[%clk 0:00:06]}  Kb3 {[%clk 0:00:04]} 90. Be3 {[%clk 0:00:06]}  Ka2 {[%clk 0:00:05]} 91. Bd2 {[%clk 0:00:07]}  c1=Q {[%clk 0:00:06]} 92. Bxc1 {[%clk 0:00:07]} 1/2-1/2


[Site "https://www.chess.com"]